lending/lending_fUSD_20241124
["ID","MTS","AMOUNT","RATE_DAILY","PERIOD"]
[343216980,1732473047260,-500.0,0.00047396,2]
[343216981,1732473047271,-500.0,0.00047396,2]
[343216982,1732473047283,-151.0,0.00047396,14]
[343216983,1732473047295,-501.15,0.00047396,2]
[343216984,1732473047304,-151.0,0.00047396,14]
[343216985,1732473047314,-619.2,0.00047396,2]
[343216986,1732473047324,-151.0,0.00047396,14]
[343216987,1732473047334,-500.0,0.00047396,2]
[343216988,1732473047344,-500.0,0.00047396,2]
[343216989,1732473047354,-293.637875,0.00047396,2]
[343216990,1732473047364,-320.609901,0.00047396,14]
[343216991,1732473047373,-320.609907,0.00047396,14]
[343216992,1732473047384,-500.0,0.00047396,2]
[343216993,1732473047393,-663.45,0.00047396,2]
[343216994,1732473047403,-500.0,0.00047396,2]
[343216995,1732473047413,-830.59,0.00047396,2]
[343216996,1732473047422,-423.938435,0.00047396,14]
[343216997,1732473047432,-1000.0,0.00047396,120]
[343216998,1732473047441,-500.0,0.00047396,2]
[343216999,1732473047451,-423.938428,0.00047396,14]
[343217000,1732473047460,-529.12,0.00047396,2]
[343217001,1732473047469,-2023.64,0.00047396,2]
[343217002,1732473047479,-544.4,0.00047396,2]
[343217003,1732473047488,-500.0,0.00047396,2]
[343217004,1732473047498,-500.0,0.00047396,2]
[343217005,1732473047507,-6156.13,0.00047396,2]
[343217006,1732473047517,-500.0,0.00047396,2]
[343217007,1732473047529,-584.44,0.00047396,2]
[343217008,1732473047538,-299.97,0.00047396,2]
[343217009,1732473047548,-4508.15,0.00047396,120]
[343217010,1732473047557,-769.67,0.00047396,2]
[343217011,1732473047566,-1607.41,0.00047396,2]
[343217012,1732473047576,-751.76,0.00047396,120]
[343217013,1732473047585,-710.39,0.00047396,2]
[343217014,1732473047595,-500.0,0.00047396,2]
[343217015,1732473047604,-500.0,0.00047396,2]
[343217016,1732473047614,-932.75,0.00047396,2]
[343217017,1732473047623,-500.0,0.00047396,2]
[343217018,1732473047633,-559.97,0.00047396,2]
[343217019,1732473047643,-500.0,0.00047396,2]
[343217020,1732473047652,-974.7,0.00047396,2]
[343217021,1732473047662,-150.0,0.00047397,30]
[343217022,1732473047671,-151.0,0.00047397,14]
[343217023,1732473047681,-151.0,0.00047397,14]
[343217024,1732473047691,-245.394323,0.00047397,14]
[343217025,1732473047701,-151.0,0.00047397,14]
[343217026,1732473047711,-151.0,0.00047397,14]
[343217027,1732473047720,-151.0,0.00047397,14]
[343217028,1732473047730,-151.0,0.00047397,14]
[343217029,1732473047739,-250.315529,0.00047397,14]
[343217030,1732473047749,-562.26,0.00047397,2]
[343217031,1732473047759,-562.26,0.00047397,2]
[343217032,1732473047768,-562.26,0.00047397,2]
[343217033,1732473047779,-562.26,0.00047397,2]
[343217034,1732473047789,-500.0,0.00047397,2]
[343217035,1732473047798,-500.0,0.00047397,2]
[343217036,1732473047808,-500.0,0.00047397,2]
[343217037,1732473047817,-500.0,0.00047397,2]
[343217038,1732473047827,-500.0,0.00047397,2]
[343217039,1732473047836,-546.5,0.00047397,2]
[343217040,1732473047845,-246.885279,0.00047397,14]
[343217041,1732473047854,-500.0,0.00047397,2]
[343217042,1732473047863,-500.0,0.00047397,2]
[343217043,1732473047873,-500.0,0.00047397,2]
[343217044,1732473047882,-500.0,0.00047397,2]
[343217045,1732473047892,-503.5,0.00047397,2]
[343217046,1732473047901,-503.5,0.00047397,2]
[343217047,1732473047910,-503.5,0.00047397,2]
[343217048,1732473047920,-503.5,0.00047397,2]
[343217049,1732473047929,-500.0,0.00047397,2]
[343217050,1732473047939,-156.78275525,0.00047397,2]
[343217051,1732473047948,-500.0,0.00047397,2]
[343217052,1732473047957,-500.0,0.00047397,2]
[343217053,1732473047967,-500.0,0.00047397,2]
[343217054,1732473047976,-500.0,0.00047397,2]
[343217055,1732473047985,-500.0,0.00047397,2]
[343217056,1732473047995,-500.0,0.00047397,2]
[343217057,1732473048005,-500.0,0.00047397,2]
[343217058,1732473048014,-1325.79,0.00047397,2]
[343217059,1732473048025,-1325.79,0.00047397,2]
[343217060,1732473048035,-1325.79,0.00047397,2]
[343217061,1732473048045,-500.0,0.00047397,2]
[343217062,1732473048055,-500.0,0.00047397,2]
[343217063,1732473048065,-500.0,0.00047397,2]
[343217064,1732473048074,-500.0,0.00047397,2]
[343217065,1732473048084,-500.0,0.00047397,2]
[343217066,1732473048094,-500.0,0.00047397,2]
[343217067,1732473048104,-178.547934,0.00047397,14]
[343217068,1732473048114,-178.547934,0.00047397,14]
[343217069,1732473048123,-178.547934,0.00047397,14]
[343217070,1732473048133,-500.0,0.00047397,2]
[343217071,1732473048143,-595.82,0.00047397,2]
[343217072,1732473048153,-178.547934,0.00047397,14]
[343217073,1732473048162,-178.547934,0.00047397,14]
[343217074,1732473048172,-178.547932,0.00047397,14]
[343217075,1732473048182,-514.75,0.00047397,2]
[343217076,1732473048191,-514.75,0.00047397,2]
[343217077,1732473048202,-514.75,0.00047397,2]
[343217078,1732473048214,-1755.49,0.00047397,2]
[343217079,1732473048224,-1755.49,0.00047397,2]
[343217080,1732473048233,-1755.49,0.00047397,2]
[343217081,1732473048243,-679.08,0.00047397,2]
[343217082,1732473048253,-679.08,0.00047397,2]
[343217083,1732473048263,-679.08,0.00047397,2]
[343217084,1732473048274,-500.0,0.00047397,2]
[343217085,1732473048284,-500.0,0.00047397,2]
[343217086,1732473048294,-500.0,0.00047397,2]
[343217087,1732473048304,-500.0,0.00047397,2]
[343217088,1732473048313,-500.0,0.00047397,2]
[343217089,1732473048323,-500.0,0.00047397,2]
[343217090,1732473048333,-1058.66,0.00047397,2]
[343217091,1732473048342,-1058.66,0.00047397,2]
[343217092,1732473048352,-1058.66,0.00047397,2]
[343217093,1732473048363,-985.98,0.00047397,2]
[343217094,1732473048373,-985.98,0.00047397,2]
[343217095,1732473048383,-985.98,0.00047397,2]
[343217096,1732473048392,-500.0,0.00047397,2]
[343217097,1732473048402,-500.0,0.00047397,2]
[343217098,1732473048411,-500.0,0.00047397,2]
[343217099,1732473048420,-742.46,0.00047397,2]
[343217100,1732473048430,-742.46,0.00047397,2]
[343217101,1732473048439,-742.46,0.00047397,2]
[343217102,1732473048449,-998.9,0.00047397,2]
[343217103,1732473048458,-998.9,0.00047397,2]
[343217104,1732473048467,-998.9,0.00047397,2]
[343217105,1732473048477,-998.9,0.00047397,2]
[343217106,1732473048487,-888.17,0.00047397,2]
[343217107,1732473048496,-888.17,0.00047397,2]
[343217108,1732473048506,-888.17,0.00047397,2]
[343217109,1732473048515,-500.0,0.00047397,2]
[343217110,1732473048526,-576.37235563,0.00047397,2]
[343217111,1732473048535,-500.0,0.00047397,2]
[343217112,1732473048545,-621.61,0.00047397,2]
[343217113,1732473048554,-257.553122,0.00047397,14]
[343217114,1732473048563,-500.0,0.00047397,2]
[343217115,1732473048573,-500.0,0.00047397,2]
[343217116,1732473048582,-257.55313,0.00047397,14]
[343217117,1732473048592,-500.0,0.00047397,2]
[343217118,1732473048602,-151.0,0.00047397,14]
[343217119,1732473048612,-501.15,0.00047397,2]
[343217120,1732473048621,-501.15,0.00047397,2]
[343217121,1732473048631,-501.15,0.00047397,2]
[343217122,1732473048640,-151.0,0.00047397,14]
[343217123,1732473048649,-619.2,0.00047397,2]
[343217124,1732473048658,-619.2,0.00047397,2]
[343217125,1732473048667,-619.2,0.00047397,2]
[343217126,1732473048677,-500.0,0.00047397,2]
[343217127,1732473048687,-500.0,0.00047397,2]
[343217128,1732473048696,-500.0,0.00047397,2]
[343217129,1732473048705,-500.0,0.00047397,2]
[343217130,1732473048715,-500.0,0.00047397,2]
[343217131,1732473048725,-500.0,0.00047397,2]
[343217132,1732473048735,-500.0,0.00047397,2]
[343217133,1732473048744,-500.0,0.00047397,2]
[343217134,1732473048753,-500.0,0.00047397,2]
[343217135,1732473048763,-500.0,0.00047397,2]
[343217136,1732473048773,-500.0,0.00047397,2]
[343217137,1732473048783,-500.0,0.00047397,2]
[343217138,1732473048793,-500.0,0.00047397,2]
[343217139,1732473048802,-663.45,0.00047397,2]
[343217140,1732473048811,-663.45,0.00047397,2]
[343217141,1732473048820,-663.45,0.00047397,2]
[343217142,1732473048830,-500.0,0.00047397,2]
[343217143,1732473048841,-500.0,0.00047397,2]
[343217144,1732473048850,-500.0,0.00047397,2]
[343217145,1732473048860,-830.59,0.00047397,2]
[343217146,1732473048870,-830.59,0.00047397,2]
[343217147,1732473048879,-830.59,0.00047397,2]
[343217148,1732473048888,-500.0,0.00047397,2]
[343217149,1732473048898,-500.0,0.00047397,2]
[343217150,1732473048907,-500.0,0.00047397,2]
[343217151,1732473048916,-529.12,0.00047397,2]
[343217152,1732473048925,-529.12,0.00047397,2]
[343217153,1732473048935,-529.12,0.00047397,2]
[343217154,1732473048944,-500.0,0.00047397,2]
[343217155,1732473048954,-157.2,0.00047397,2]
[343217156,1732473048963,-2023.64,0.00047397,2]
[343217157,1732473048973,-2023.64,0.00047397,2]
[343217158,1732473048983,-2023.64,0.00047397,2]
[343217159,1732473048992,-544.4,0.00047397,2]
[343217160,1732473049002,-544.4,0.00047397,2]
[343217161,1732473049011,-544.4,0.00047397,2]
[343217162,1732473049023,-500.0,0.00047397,2]
[343217163,1732473049032,-500.0,0.00047397,2]
[343217164,1732473049042,-500.0,0.00047397,2]
[343217165,1732473049052,-500.0,0.00047397,2]
[343217166,1732473049061,-500.0,0.00047397,2]
[343217167,1732473049071,-500.0,0.00047397,2]
[343217168,1732473049081,-6156.13,0.00047397,2]
[343217169,1732473049090,-6156.13,0.00047397,2]
[343217170,1732473049099,-6156.13,0.00047397,2]
[343217171,1732473049109,-500.0,0.00047397,2]
[343217172,1732473049119,-500.0,0.00047397,2]
[343217173,1732473049128,-500.0,0.00047397,2]
[343217174,1732473049138,-584.44,0.00047397,2]
[343217175,1732473049147,-584.44,0.00047397,2]
[343217176,1732473049157,-584.44,0.00047397,2]
[343217177,1732473049166,-4508.15,0.00047397,120]
[343217178,1732473049176,-4508.15,0.00047397,120]
[343217179,1732473049186,-4508.15,0.00047397,120]
[343217180,1732473049195,-769.67,0.00047397,2]
[343217181,1732473049205,-769.67,0.00047397,2]
[343217182,1732473049215,-769.67,0.00047397,2]
[343217183,1732473049227,-1607.41,0.00047397,2]
[343217184,1732473049236,-1607.41,0.00047397,2]
[343217185,1732473049246,-1607.41,0.00047397,2]
[343217186,1732473049256,-751.76,0.00047397,120]
[343217187,1732473049267,-751.76,0.00047397,120]
[343217188,1732473049279,-751.76,0.00047397,120]
[343217189,1732473049288,-710.39,0.00047397,2]
[343217190,1732473049300,-710.39,0.00047397,2]
[343217191,1732473049312,-710.39,0.00047397,2]
[343217192,1732473049322,-500.0,0.00047397,2]
[343217193,1732473049333,-500.0,0.00047397,2]
[343217194,1732473049343,-500.0,0.00047397,2]
[343217195,1732473049352,-500.0,0.00047397,2]
[343217196,1732473049362,-500.0,0.00047397,2]
[343217197,1732473049372,-500.0,0.00047397,2]
[343217198,1732473049382,-932.75,0.00047397,2]
[343217199,1732473049391,-932.75,0.00047397,2]
[343217200,1732473049402,-932.75,0.00047397,2]
[343217201,1732473049412,-500.0,0.00047397,2]
[343217202,1732473049422,-559.97,0.00047397,2]
[343217203,1732473049431,-559.97,0.00047397,2]
[343217204,1732473049440,-559.97,0.00047397,2]
[343217205,1732473049450,-500.0,0.00047397,2]
[343217206,1732473049460,-500.0,0.00047397,2]
[343217207,1732473049470,-500.0,0.00047397,2]
[343217208,1732473049480,-974.7,0.00047397,2]
[343217209,1732473049490,-974.7,0.00047397,2]
[343217210,1732473049500,-974.7,0.00047397,2]
[343217211,1732473049510,-312587.84063267,0.00047398,15]
[343217212,1732473050155,-241.167382,0.00047029,14]
[343217213,1732473050164,-241.167382,0.00047029,14]
[343217214,1732473050174,-241.167382,0.0004703,14]
[343217215,1732473050184,-241.167382,0.0004708,14]
[343217216,1732473050193,-95333.54247201,0.00047398,15]
[343217217,1732473050299,-512.44196373,0.00046928,15]
[343217218,1732473050308,-241.167382,0.00047169,14]
[343217219,1732473050318,-241.167382,0.0004717,14]
[343217220,1732473050328,-241.167382,0.0004725,14]
[343217221,1732473050337,-4780.36029121,0.00047398,15]
[343217222,1732473050376,-241.167382,0.00047279,14]
[343217223,1732473050385,-1126.288618,0.00047398,15]
[343217224,1732473050483,-187.21,0.0004707,30]
[343217225,1732473050492,-241.167386,0.00047373,14]
[343217226,1732473050501,-3631.038324,0.00047398,15]
[343217227,1732473050660,-658.10688,0.00047398,15]
[343217230,1732473132916,151.0,0.0003,120]
[343217231,1732473134461,190.077,0.00034233,2]
[343217252,1732473511962,247.584,0.00041659,62]
[343217253,1732473601703,10000.0,0.00042,2]
[343217254,1732473681334,1935.57,0.0004202,2]
[343217255,1732473760342,155.65,0.00041096,2]
[343217257,1732474095230,250.0,0.00031,2]
[343217258,1732474096404,300.0,0.00033,2]
[343217280,1732474231650,-428.53,0.00044083,2]
[343217281,1732474231660,-150.51,0.00045731,2]
[343217282,1732474231670,-1000.0,0.00045906,2]
[343217283,1732474231680,-248.66,0.00045917,120]
[343217284,1732474231689,-250.0,0.00045924,120]
[343217285,1732474231700,-1780.65,0.00046026,2]
[343217286,1732474231710,-154.79,0.00046047,2]
[343217287,1732474231721,-166.37,0.00046176,2]
[343217288,1732474231730,-4216.27124311,0.000462,120]
[343217289,1732474231739,-161.88,0.00046326,2]
[343217290,1732474231749,-428.53,0.00046347,2]
[343217291,1732474231760,-155.06,0.0004644,120]
[343217292,1732474231771,-161.88,0.00046441,2]
[343217293,1732474231781,-161.88,0.00046557,2]
[343217294,1732474231791,-1000.0,0.00046799,2]
[343217295,1732474231802,-50000.0,0.000468,120]
[343217296,1732474231814,-20002.69166567,0.000469,2]
[343217297,1732474231824,-853.9567814,0.00046918,15]
[343217298,1732474231835,-2760.2959,0.00046928,2]
[343217299,1732474231844,-5000.0,0.00046928,120]
[343217300,1732474231855,-400.0,0.00046929,2]
[343217301,1732474231866,-381.85418236,0.00046979,28]
[343217302,1732474231875,-156.01,0.0004699,30]
[343217303,1732474231884,-780.08,0.0004699,30]
[343217304,1732474231894,-5393.12328026,0.00047,2]
[343217305,1732474231906,-10985.31435537,0.00047,2]
[343217306,1732474231917,-9641.2,0.00047,2]
[343217307,1732474231928,-1476.61070358,0.00047,2]
[343217308,1732474231950,-547.999999,0.00047,2]
[343217309,1732474231965,-1245.0,0.00047,2]
[343217310,1732474231976,-2425.0,0.00047,2]
[343217311,1732474231987,-810.0,0.00047,2]
[343217312,1732474231998,-2539.081825,0.00047,2]
[343217313,1732474232009,-964.51434,0.00047,2]
[343217314,1732474232023,-672.8929944,0.00047,2]
[343217315,1732474232037,-12755.00604634,0.00047,2]
[343217336,1732474237665,-1391.99059,0.00047,2]
[343217339,1732474237917,-837.9,0.00047,2]
[343217340,1732474237928,-14975.60397008,0.00047,2]
[343217341,1732474238091,-1043.32509542,0.00047,2]
[343217344,1732474239615,-3793.3337902,0.00047,2]
[343217345,1732474239625,-500.0,0.00047027,2]
[343217346,1732474239634,-500.0,0.00047027,2]
[343217347,1732474239643,-500.0,0.00047027,2]
[343217348,1732474239653,-500.0,0.00047027,2]
[343217349,1732474239662,-3005.44,0.00047027,120]
[343217350,1732474239672,-1071.6,0.00047027,2]
[343217351,1732474239681,-500.0,0.00047027,2]
[343217352,1732474239691,-500.0,0.00047027,2]
[343217353,1732474239702,-500.0,0.00047027,2]
[343217354,1732474239715,-500.0,0.00047027,2]
[343217355,1732474239725,-500.0,0.00047027,2]
[343217356,1732474239734,-500.0,0.00047027,2]
[343217357,1732474239744,-500.0,0.00047027,2]
[343217358,1732474239755,-574.56,0.00047027,2]
[343217359,1732474239764,-500.0,0.00047028,2]
[343217360,1732474239774,-500.0,0.00047028,2]
[343217361,1732474239783,-385.6,0.00047028,2]
[343217362,1732474239792,-665.93,0.00047028,2]
[343217363,1732474239802,-665.93,0.00047028,2]
[343217364,1732474239812,-500.0,0.00047028,2]
[343217365,1732474239822,-500.0,0.00047028,2]
[343217366,1732474239831,-883.86,0.00047028,2]
[343217367,1732474239840,-883.86,0.00047028,2]
[343217368,1732474239849,-500.0,0.00047028,2]
[343217369,1732474239859,-500.0,0.00047028,2]
[343217370,1732474239868,-500.0,0.00047028,2]
[343217371,1732474239878,-500.0,0.00047028,2]
[343217372,1732474239888,-500.0,0.00047028,2]
[343217373,1732474239898,-500.0,0.00047028,2]
[343217374,1732474239907,-500.0,0.00047028,2]
[343217375,1732474239917,-531.68,0.00047028,2]
[343217376,1732474239927,-561.85,0.00047028,2]
[343217377,1732474239936,-1170.32,0.00047028,2]
[343217378,1732474239946,-1170.32,0.00047028,2]
[343217379,1732474239955,-705.78,0.00047028,2]
[343217380,1732474239967,-705.78,0.00047028,2]
[343217381,1732474239977,-503.4527,0.00047028,2]
[343217382,1732474239987,-657.32,0.00047028,2]
[343217383,1732474240001,-657.32,0.00047028,2]
[343217384,1732474240012,-500.0,0.00047028,2]
[343217385,1732474240022,-500.0,0.00047028,2]
[343217386,1732474240032,-592.11,0.00047028,2]
[343217387,1732474240042,-592.11,0.00047028,2]
[343217388,1732474240051,-649.8,0.00047076,2]
[343217389,1732474240061,-500.0,0.00047077,2]
[343217390,1732474240070,-500.0,0.00047077,2]
[343217391,1732474240079,-500.0,0.00047077,2]
[343217392,1732474240089,-500.0,0.00047077,2]
[343217393,1732474240098,-500.0,0.00047077,2]
[343217394,1732474240108,-199.64706748,0.00047077,2]
[343217395,1732474240254,-300.35293252,0.00047077,2]
[343217396,1732474240264,-504.07,0.00047077,2]
[343217397,1732474240274,-313.80305357,0.00047077,2]
[343217404,1732474244695,-432.51418554,0.00047076,2]
[343217405,1732474244705,-186.19694643,0.00047077,2]
[343217406,1732474244718,-500.0,0.00047077,2]
[343217407,1732474244728,-500.0,0.00047077,2]
[343217408,1732474244737,-794.82574043,0.00047077,2]
[343217409,1732474244749,-530.229985,0.00047077,2]
[343217410,1732474244762,-562.39668,0.00047077,2]
[343217411,1732474244774,-1393.9,0.00047077,2]
[343217412,1732474244871,-822.72759457,0.00047077,2]
[343217413,1732474244881,-500.0,0.00047077,2]
[343217414,1732474244891,-486.0,0.00047077,2]
[343217415,1732474244901,-234.56640564,0.00047077,2]
[343217416,1732474244912,-265.43359436,0.00047077,2]
[343217417,1732474244921,-500.0,0.00047077,2]
[343217418,1732474244930,-500.0,0.00047077,2]
[343217419,1732474244940,-500.0,0.00047077,2]
[343217420,1732474244949,-219.45599923,0.00047077,2]
[343217421,1732474244959,-513.12,0.00047077,2]
[343217422,1732474244971,-195.5,0.00047077,2]
[343217423,1732474244980,-640.29238948,0.00047077,2]
[343217424,1732474244989,-500.0,0.00047077,2]
[343217425,1732474244998,-500.0,0.00047077,2]
[343217426,1732474245007,-486.2491393,0.00047077,2]
[343217427,1732474245019,-13.7508607,0.00047077,2]
[343217428,1732474245027,-500.0,0.00047077,2]
[343217429,1732474245037,-500.0,0.00047077,2]
[343217430,1732474245046,-500.0,0.00047077,2]
[343217431,1732474245055,-533.65,0.00047077,2]
[343217432,1732474245064,-505.82052425,0.00047077,2]
[343217433,1732474245073,-500.0,0.00047077,2]
[343217434,1732474245082,-500.0,0.00047077,2]
[343217435,1732474245091,-500.0,0.00047077,2]
[343217436,1732474245100,-500.0,0.00047077,2]
[343217437,1732474245110,-500.0,0.00047077,2]
[343217438,1732474245119,-500.0,0.00047077,2]
[343217439,1732474245128,-500.0,0.00047077,2]
[343217440,1732474245137,-500.0,0.00047077,2]
[343217441,1732474245146,-500.0,0.00047077,2]
[343217442,1732474245155,-500.0,0.00047077,2]
[343217443,1732474245163,-503.92561738,0.00047077,2]
[343217444,1732474245172,-544.43,0.00047077,2]
[343217445,1732474245181,-500.0,0.00047077,2]
[343217446,1732474245191,-500.0,0.00047077,2]
[343217447,1732474245200,-500.0,0.00047077,2]
[343217448,1732474245209,-500.0,0.00047077,2]
[343217449,1732474245221,-500.0,0.00047077,2]
[343217450,1732474245231,-500.0,0.00047077,2]
[343217451,1732474245240,-500.0,0.00047077,2]
[343217452,1732474245249,-500.0,0.00047077,2]
[343217453,1732474245259,-500.0,0.00047077,2]
[343217454,1732474245269,-500.0,0.00047077,2]
[343217455,1732474245278,-500.0,0.00047077,2]
[343217456,1732474245288,-500.0,0.00047077,2]
[343217457,1732474245297,-500.0,0.00047077,2]
[343217459,1732474245307,-500.0,0.00047077,2]
[343217461,1732474245316,-500.0,0.00047077,2]
[343217463,1732474245326,-500.0,0.00047077,2]
[343217465,1732474245335,-500.0,0.00047077,2]
[343217467,1732474245344,-500.0,0.00047077,2]
[343217469,1732474245354,-500.0,0.00047077,2]
[343217471,1732474245363,-500.0,0.00047077,2]
[343217473,1732474245372,-500.0,0.00047077,2]
[343217476,1732474245382,-500.0,0.00047077,2]
[343217478,1732474245391,-500.0,0.00047077,2]
[343217479,1732474245400,-505.18220662,0.00047077,2]
[343217481,1732474245410,-500.0,0.00047077,2]
[343217482,1732474245419,-500.0,0.00047077,2]
[343217483,1732474245428,-500.0,0.00047077,2]
[343217484,1732474245437,-500.0,0.00047077,2]
[343217485,1732474245447,-500.0,0.00047077,2]
[343217486,1732474245457,-500.0,0.00047077,2]
[343217487,1732474245468,-335.58,0.00047077,2]
[343217488,1732474245477,-501.89369903,0.00047077,2]
[343217489,1732474245487,-500.0,0.00047077,2]
[343217490,1732474245496,-500.0,0.00047077,2]
[343217491,1732474245505,-500.0,0.00047077,2]
[343217492,1732474245514,-500.0,0.00047077,2]
[343217493,1732474245524,-500.0,0.00047077,2]
[343217494,1732474245534,-500.0,0.00047077,2]
[343217495,1732474245543,-500.0,0.00047077,2]
[343217496,1732474245552,-500.0,0.00047077,2]
[343217497,1732474245562,-500.0,0.00047077,2]
[343217498,1732474245571,-500.0,0.00047077,2]
[343217499,1732474245582,-500.0,0.00047077,2]
[343217500,1732474245593,-500.0,0.00047077,2]
[343217501,1732474245603,-500.0,0.00047077,2]
[343217502,1732474245613,-500.0,0.00047077,2]
[343217503,1732474245623,-500.0,0.00047077,2]
[343217504,1732474245632,-500.0,0.00047077,2]
[343217505,1732474245644,-504.29486363,0.00047077,2]
[343217506,1732474245656,-500.0,0.00047078,2]
[343217507,1732474245825,-510.93384063,0.00047078,2]
[343217508,1732474245835,-500.0,0.00047078,2]
[343217509,1732474245845,-500.0,0.00047078,2]
[343217510,1732474245854,-500.0,0.00047078,2]
[343217511,1732474245867,-500.0,0.00047078,2]
[343217512,1732474245876,-500.0,0.00047078,2]
[343217513,1732474245885,-500.0,0.00047078,2]
[343217514,1732474245895,-500.0,0.00047078,2]
[343217515,1732474245903,-500.0,0.00047078,2]
[343217516,1732474245912,-502.91800523,0.00047078,2]
[343217517,1732474245922,-500.0,0.00047078,2]
[343217518,1732474245931,-500.0,0.00047078,2]
[343217519,1732474245940,-502.28557916,0.00047078,2]
[343217520,1732474245950,-500.0,0.00047078,2]
[343217521,1732474245959,-500.0,0.00047078,2]
[343217522,1732474245971,-500.0,0.00047078,2]
[343217523,1732474245980,-500.0,0.00047078,2]
[343217524,1732474245989,-500.0,0.00047078,2]
[343217525,1732474245999,-501.94468683,0.00047078,2]
[343217526,1732474246008,-500.0,0.00047078,2]
[343217527,1732474246017,-500.0,0.00047078,2]
[343217528,1732474246027,-500.0,0.00047078,2]
[343217529,1732474246035,-500.0,0.00047078,2]
[343217530,1732474246045,-500.0,0.00047078,2]
[343217531,1732474246054,-500.0,0.00047078,2]
[343217532,1732474246063,-500.0,0.00047078,2]
[343217533,1732474246073,-521.91491164,0.00047078,2]
[343217534,1732474246082,-191.38687586,0.00047078,2]
[343217535,1732474246095,-308.61312414,0.00047078,2]
[343217536,1732474246104,-500.0,0.00047078,2]
[343217537,1732474246113,-500.0,0.00047078,2]
[343217538,1732474246122,-500.0,0.00047078,2]
[343217539,1732474246131,-500.000001,0.00047078,2]
[343217540,1732474246140,-500.0,0.00047078,2]
[343217541,1732474246150,-147.85187573,0.00047078,2]
[343217542,1732474246250,-352.14812427,0.00047078,2]
[343217543,1732474246259,-500.0,0.00047078,2]
[343217544,1732474246270,-500.0,0.00047078,2]
[343217545,1732474246279,-500.0,0.00047078,2]
[343217546,1732474246292,-135.35187412,0.00047078,2]
[343217547,1732474246303,-364.64812588,0.00047078,2]
[343217548,1732474246312,-500.0,0.00047078,2]
[343217549,1732474246321,-500.0,0.00047078,2]
[343217550,1732474246331,-10.87211818,0.00047078,2]
[343217561,1732474503137,1170.68018688,0.0004,30]
[343217562,1732474503163,108224.50981312,0.0004,30]
[343217573,1732474803154,141636.41846096,0.0002,30]
[343217574,1732474810409,536.0,0.000409,2]
[343217575,1732474811337,482.0,0.000409,2]
[343217576,1732474909181,509.0,0.000419,120]
[343217577,1732475141946,2700.0,0.00042,2]
[343217578,1732475168427,164.54,0.00041096,2]
[343217612,1732475431889,-1069.82738429,0.000433,30]
[343217613,1732475431899,-385.67,0.00044246,2]
[343217614,1732475431908,-3020.0,0.00045,120]
[343217615,1732475431917,-14503.90261571,0.0004553,30]
[343217616,1732475431941,-3916.53265403,0.0004553,30]
[343217617,1732475432097,-298.2397347,0.0004553,30]
[343217623,1732475438180,-6597.16821443,0.0004553,30]